fUST/lending_fUST_20250606
["ID","MTS","AMOUNT","RATE_DAILY","PERIOD"]
[364701391,1749211842819,-1945.86,0.00019726,2]
[364701393,1749211842828,-440.0,0.00019726,2]
[364701395,1749211842838,-450.0,0.00019726,2]
[364701397,1749211842848,-440.0,0.00019726,2]
[364701399,1749211842857,-539.49989077,0.00019726,2]
[364701401,1749211842867,-1183.7,0.00019726,2]
[364701403,1749211842876,-470.0,0.00019726,2]
[364701405,1749211842885,-430.0,0.00019726,2]
[364701407,1749211842895,-430.0,0.00019726,2]
[364701408,1749211842904,-440.0,0.00019726,2]
[364701410,1749211842914,-440.0,0.00019726,2]
[364701413,1749211842924,-440.0,0.00019726,2]
[364701415,1749211842934,-631.88,0.00019726,2]
[364701416,1749211842943,-440.0,0.00019726,2]
[364701419,1749211842953,-1590.82,0.00019726,2]
[364701420,1749211842963,-1467.44,0.00019726,2]
[364701422,1749211842973,-500.0,0.00019776,2]
[364701424,1749211842983,-463.0581725,0.00019776,2]
[364701426,1749211842994,-500.0,0.00019776,2]
[364701428,1749211843004,-2116.36843758,0.000199,2]
[364701431,1749211843014,-440.0,0.0002,2]
[364701432,1749211843023,-430.0,0.0002,2]
[364701434,1749211843033,-430.0,0.0002,2]
[364701436,1749211843043,-440.0,0.0002,2]
[364701438,1749211843053,-440.0,0.0002,2]
[364701440,1749211843062,-440.0,0.0002,2]
[364701443,1749211843073,-430.0,0.0002,2]
[364701444,1749211843083,-440.0,0.0002,2]
[364701446,1749211843093,-454.36,0.0002,2]
[364701448,1749211843105,-420.0,0.0002,2]
[364701450,1749211843115,-440.0,0.0002,2]
[364701452,1749211843124,-191.83135684,0.0002,2]
[364701454,1749211843134,-273.94514652,0.0002,2]
[364701456,1749211843144,-182.88,0.0002,2]
[364701458,1749211843153,-420.0,0.0002,2]
[364701461,1749211843163,-440.0,0.0002,2]
[364701462,1749211843173,-440.0,0.0002,2]
[364701464,1749211843183,-440.0,0.0002,2]
[364701467,1749211843193,-442.77,0.0002,2]
[364701469,1749211843202,-440.0,0.0002,2]
[364701471,1749211843211,-440.0,0.0002,2]
[364701473,1749211843220,-420.0,0.0002,2]
[364701475,1749211843229,-1235.22,0.0002,2]
[364701477,1749211843240,-578.4,0.0002,2]
[364701479,1749211843249,-605.56,0.0002,2]
[364701481,1749211843259,-420.0,0.0002,2]
[364701483,1749211843269,-442.75544499,0.0002,2]
[364701485,1749211843278,-430.0,0.0002,2]
[364701487,1749211843288,-440.0,0.0002,2]
[364701489,1749211843297,-375.74198869,0.0002,2]
[364701491,1749211843307,-440.0,0.0002,2]
[364701493,1749211843317,-511.2,0.0002,2]
[364701496,1749211843326,-440.0,0.0002,2]
[364701498,1749211843336,-419.340788,0.0002,2]
[364701500,1749211843346,-440.0,0.0002,2]
[364701502,1749211843355,-440.0,0.0002,2]
[364701504,1749211843364,-440.0,0.0002,2]
[364701506,1749211843374,-420.0,0.0002,2]
[364701508,1749211843383,-242.3195849,0.0002,2]
[364701510,1749211843393,-1024.18,0.0002,2]
[364701512,1749211843403,-440.0,0.0002,2]
[364701514,1749211843412,-1930.48,0.0002,2]
[364701515,1749211843422,-440.0,0.0002,2]
[364701517,1749211843431,-1604.28,0.0002,2]
[364701519,1749211843440,-420.0,0.0002,2]
[364701521,1749211843450,-440.0,0.0002,2]
[364701523,1749211843459,-563.76,0.0002,2]
[364701525,1749211843469,-440.0,0.0002,2]
[364701526,1749211843478,-440.0,0.0002,2]
[364701527,1749211843489,-797.67,0.0002,2]
[364701528,1749211843498,-440.0,0.0002,2]
[364701529,1749211843507,-440.0,0.0002,2]
[364701530,1749211843516,-440.0,0.0002,2]
[364701531,1749211843525,-440.0,0.0002,2]
[364701532,1749211843535,-410.0,0.0002,2]
[364701533,1749211843544,-440.0,0.0002,2]
[364701535,1749211843553,-3054.31,0.0002,2]
[364701537,1749211843563,-440.0,0.0002,2]
[364701539,1749211843573,-990.37,0.0002,2]
[364701541,1749211843583,-420.0,0.0002,2]
[364701543,1749211843592,-440.0,0.0002,2]
[364701545,1749211843601,-430.0,0.0002,2]
[364701547,1749211843609,-440.0,0.0002,2]
[364701549,1749211843619,-440.0,0.0002,2]
[364701551,1749211843628,-440.0,0.0002,2]
[364701553,1749211843637,-637.69,0.0002,2]
[364701555,1749211843647,-971.66,0.0002,2]
[364701557,1749211843656,-440.0,0.0002,2]
[364701559,1749211843665,-440.0,0.0002,2]
[364701561,1749211843675,-440.0,0.0002,2]
[364701563,1749211843684,-440.0,0.0002,2]
[364701565,1749211843693,-420.0,0.0002,2]
[364701567,1749211843703,-430.0,0.0002,2]
[364701569,1749211843712,-733.35,0.0002,2]
[364701571,1749211843721,-897.33,0.0002,2]
[364701573,1749211843730,-440.0,0.0002,2]
[364701575,1749211843741,-440.0,0.0002,2]
[364701577,1749211843750,-440.0,0.0002,2]
[364701579,1749211843759,-440.0,0.0002,2]
[364701581,1749211843768,-1077.24,0.0002,2]
[364701583,1749211843777,-440.0,0.0002,2]
[364701585,1749211843786,-440.0,0.0002,2]
[364701587,1749211843795,-440.0,0.0002,2]
[364701589,1749211843805,-420.0,0.0002,2]
[364701591,1749211843814,-440.0,0.0002,2]
[364701593,1749211843823,-1945.86,0.0002,2]
[364701595,1749211843832,-440.0,0.0002,2]
[364701597,1749211843842,-1183.7,0.0002,2]
[364701599,1749211843851,-440.0,0.0002,2]
[364701601,1749211843860,-196.17983055,0.0002,2]
[364701603,1749211843870,-440.0,0.0002,2]
[364701605,1749211843879,-631.88,0.0002,2]
[364701607,1749211843888,-440.0,0.0002,2]
[364701609,1749211843898,-1590.82,0.0002,2]
[364701611,1749211843907,-1467.44,0.0002,2]
[364701613,1749211843917,-2116.36843747,0.00020072,2]
[364701615,1749211843926,-255.354,0.00020083,2]
[364701617,1749211843935,-500.0,0.00020086,2]
[364701619,1749211843945,-500.0,0.00020089,2]
[364701622,1749211843954,-500.0,0.00020149,2]
[364701624,1749211843964,-316.541405,0.00020187,2]
[364701626,1749211843973,-2116.36843747,0.00020245,2]
[364701628,1749211843983,-430.0,0.00020273,2]
[364701630,1749211843992,-440.0,0.00020273,2]
[364701632,1749211844002,-440.0,0.00020273,2]
[364701634,1749211844011,-420.0,0.00020273,2]
[364701636,1749211844020,-454.36,0.00020273,2]
[364701638,1749211844029,-440.0,0.00020273,2]
[364701640,1749211844038,-410.0,0.00020273,2]
[364701642,1749211844047,-420.0,0.00020273,2]
[364701644,1749211844056,-442.77,0.00020273,2]
[364701646,1749211844066,-420.0,0.00020273,2]
[364701648,1749211844075,-440.0,0.00020273,2]
[364701650,1749211844084,-1235.22,0.00020273,2]
[364701652,1749211844094,-578.4,0.00020273,2]
[364701654,1749211844107,-605.56,0.00020273,2]
[364701656,1749211844116,-440.0,0.00020273,2]
[364701658,1749211844125,-440.0,0.00020273,2]
[364701660,1749211844134,-511.2,0.00020273,2]
[364701662,1749211844143,-420.0,0.00020273,2]
[364701664,1749211844152,-440.0,0.00020273,2]
[364701666,1749211844161,-430.0,0.00020273,2]
[364701668,1749211844170,-440.0,0.00020273,2]
[364701670,1749211844180,-1024.18,0.00020273,2]
[364701672,1749211844190,-440.0,0.00020273,2]
[364701674,1749211844199,-1930.48,0.00020273,2]
[364701676,1749211844208,-440.0,0.00020273,2]
[364701677,1749211844217,-1604.28,0.00020273,2]
[364701679,1749211844226,-440.0,0.00020273,2]
[364701682,1749211844236,-563.76,0.00020273,2]
[364701684,1749211844245,-430.0,0.00020273,2]
[364701685,1749211844254,-440.0,0.00020273,2]
[364701687,1749211844264,-797.67,0.00020273,2]
[364701689,1749211844274,-440.0,0.00020273,2]
[364701691,1749211844283,-440.0,0.00020273,2]
[364701693,1749211844292,-410.0,0.00020273,2]
[364701695,1749211844301,-440.0,0.00020273,2]
[364701697,1749211844310,-440.0,0.00020273,2]
[364701699,1749211844319,-3054.31,0.00020273,2]
[364701701,1749211844329,-587.11625404,0.00020273,2]
[364701703,1749211844338,-990.37,0.00020273,2]
[364701705,1749211844348,-440.0,0.00020273,2]
[364701707,1749211844358,-440.0,0.00020273,2]
[364701709,1749211844367,-440.0,0.00020273,2]
[364701711,1749211844378,-440.0,0.00020273,2]
[364701713,1749211844389,-637.69,0.00020273,2]
[364701715,1749211844399,-971.66,0.00020273,2]
[364701716,1749211844408,-440.0,0.00020273,2]
[364701718,1749211844418,-440.0,0.00020273,2]
[364701720,1749211844427,-440.0,0.00020273,2]
[364701722,1749211844437,-440.0,0.00020273,2]
[364701724,1749211844447,-733.35,0.00020273,2]
[364701726,1749211844456,-897.33,0.00020273,2]
[364701728,1749211844466,-440.0,0.00020273,2]
[364701730,1749211844475,-420.0,0.00020273,2]
[364701732,1749211844485,-440.0,0.00020273,2]
[364701734,1749211844495,-440.0,0.00020273,2]
[364701736,1749211844505,-1077.24,0.00020273,2]
[364701738,1749211844514,-440.0,0.00020273,2]
[364701740,1749211844524,-440.0,0.00020273,2]
[364701742,1749211844533,-440.0,0.00020273,2]
[364701743,1749211844543,-440.0,0.00020273,2]
[364701745,1749211844553,-1945.86,0.00020273,2]
[364701747,1749211844563,-440.0,0.00020273,2]
[364701749,1749211844573,-1183.7,0.00020273,2]
[364701751,1749211844582,-440.0,0.00020273,2]
[364701753,1749211844591,-631.88,0.00020273,2]
[364701755,1749211844601,-440.0,0.00020273,2]
[364701757,1749211844610,-440.0,0.00020273,2]
[364701759,1749211844619,-1590.82,0.00020273,2]
[364701761,1749211844629,-1467.44,0.00020273,2]
[364701763,1749211844638,-500.0,0.00020323,2]
[364701765,1749211844647,-2116.36843747,0.00020417,3]
[364701767,1749211844657,-430.0,0.00020547,2]
[364701769,1749211844667,-430.0,0.00020547,2]
[364701770,1749211844676,-454.36,0.00020547,2]
[364701772,1749211844685,-440.0,0.00020547,2]
[364701774,1749211844695,-442.77,0.00020547,2]
[364701776,1749211844704,-440.0,0.00020547,2]
[364701790,1749211844821,-1235.22,0.00020547,2]
[364701792,1749211844845,-578.4,0.00020547,2]
[364701794,1749211844855,-605.56,0.00020547,2]
[364701796,1749211844865,-440.0,0.00020547,2]
[364701798,1749211844875,-443.66,0.00020547,2]
[364701799,1749211844884,-511.2,0.00020547,2]
[364701801,1749211844894,-500.0,0.00020547,2]
[364701803,1749211844904,-410.0,0.00020547,2]
[364701805,1749211844913,-440.0,0.00020547,2]
[364701807,1749211844923,-1024.18,0.00020547,2]
[364701809,1749211844932,-440.0,0.00020547,2]
[364701811,1749211844942,-1930.48,0.00020547,2]
[364701813,1749211844951,-440.0,0.00020547,2]
[364701815,1749211844961,-1604.28,0.00020547,2]
[364701817,1749211844971,-440.0,0.00020547,2]
[364701819,1749211844982,-563.76,0.00020547,2]
[364701821,1749211844992,-440.0,0.00020547,2]
[364701823,1749211845002,-797.67,0.00020547,2]
[364701824,1749211845011,-440.0,0.00020547,2]
[364701826,1749211845021,-440.0,0.00020547,2]
[364701828,1749211845030,-440.0,0.00020547,2]
[364701830,1749211845039,-440.0,0.00020547,2]
[364701832,1749211845049,-3054.31,0.00020547,2]
[364701834,1749211845059,-990.37,0.00020547,2]
[364701836,1749211845068,-440.0,0.00020547,2]
[364701838,1749211845079,-440.0,0.00020547,2]
[364701840,1749211845089,-440.0,0.00020547,2]
[364701842,1749211845099,-350.41,0.00020547,2]
[364701844,1749211845111,-637.69,0.00020547,2]
[364701846,1749211845121,-971.66,0.00020547,2]
[364701848,1749211845130,-442.37993601,0.00020547,2]
[364701850,1749211845139,-440.0,0.00020547,2]
[364701852,1749211845149,-440.0,0.00020547,2]
[364701854,1749211845159,-440.0,0.00020547,2]
[364701856,1749211845168,-733.35,0.00020547,2]
[364701857,1749211845178,-897.33,0.00020547,2]
[364701859,1749211845188,-440.0,0.00020547,2]
[364701861,1749211845197,-440.0,0.00020547,2]
[364701863,1749211845207,-497.04,0.00020547,2]
[364701865,1749211845216,-1077.24,0.00020547,2]
[364701867,1749211845226,-440.0,0.00020547,2]
[364701869,1749211845236,-528.65151876,0.00020547,2]
[364701871,1749211845246,-440.0,0.00020547,2]
[364701873,1749211845255,-160.0,0.00020547,2]
[364701875,1749211845265,-440.0,0.00020547,2]
[364701877,1749211845274,-1945.86,0.00020547,2]
[364701879,1749211845283,-440.0,0.00020547,2]
[364701881,1749211845292,-1183.7,0.00020547,2]
[364701882,1749211845303,-440.0,0.00020547,2]
[364701884,1749211845312,-631.88,0.00020547,2]
[364701886,1749211845321,-430.0,0.00020547,2]
[364701888,1749211845330,-440.0,0.00020547,2]
[364701890,1749211845340,-1590.82,0.00020547,2]
[364701892,1749211845349,-1467.44,0.00020547,2]
[364701894,1749211845358,-1000.0,0.00020583,2]
[364701896,1749211845367,-2116.36843747,0.0002059,3]
[364701898,1749211845376,-685.26,0.000206,2]
[364701900,1749211845386,-1396.0063507,0.0002064,2]
[364701902,1749211845397,-2116.36843747,0.00020762,3]
[364701903,1749211845406,-500.0,0.0002082,2]
[364701905,1749211845416,-319.47757735,0.0002082,2]
[364701907,1749211845426,-454.36,0.00020821,2]
[364701908,1749211845435,-440.0,0.00020821,2]
[364701910,1749211845446,-442.77,0.00020821,2]
[364701912,1749211845455,-440.0,0.00020821,2]
[364701913,1749211845465,-1235.22,0.00020821,2]
[364701915,1749211845475,-578.4,0.00020821,2]
[364701917,1749211845485,-605.56,0.00020821,2]
[364701918,1749211845495,-291.63523448,0.00020821,2]
[364701920,1749211845505,-511.2,0.00020821,2]
[364701922,1749211845515,-440.0,0.00020821,2]
[364701923,1749211845524,-1024.18,0.00020821,2]
[364701925,1749211845534,-400.0,0.00020821,2]
[364701927,1749211845543,-1930.48,0.00020821,2]
[364701928,1749211845552,-151.33909041,0.00020821,2]
[364701930,1749211845563,-1604.28,0.00020821,2]
[364701932,1749211845572,-440.0,0.00020821,2]
[364701933,1749211845582,-563.76,0.00020821,2]
[364701935,1749211845591,-440.0,0.00020821,2]
[364701937,1749211845601,-797.67,0.00020821,2]
[364701938,1749211845610,-440.0,0.00020821,2]
[364701940,1749211845619,-440.0,0.00020821,2]
[364701942,1749211845629,-440.0,0.00020821,2]
[364701943,1749211845639,-440.0,0.00020821,2]
[364701945,1749211845650,-3054.31,0.00020821,2]
[364701947,1749211845659,-990.37,0.00020821,2]
[364701948,1749211845669,-440.0,0.00020821,2]
[364701950,1749211845679,-440.0,0.00020821,2]
[364701952,1749211845689,-440.0,0.00020821,2]
[364701953,1749211845699,-637.69,0.00020821,2]
[364701955,1749211845709,-971.66,0.00020821,2]
[364701957,1749211845719,-440.0,0.00020821,2]
[364701958,1749211845729,-440.0,0.00020821,2]
[364701960,1749211845739,-440.0,0.00020821,2]
[364701962,1749211845749,-733.35,0.00020821,2]
[364701964,1749211845758,-897.33,0.00020821,2]
[364701965,1749211845767,-440.0,0.00020821,2]
[364701967,1749211845777,-440.0,0.00020821,2]
[364701969,1749211845787,-1077.24,0.00020821,2]
[364701970,1749211845797,-440.0,0.00020821,2]
[364701972,1749211845806,-440.0,0.00020821,2]
[364701974,1749211845816,-440.0,0.00020821,2]
[364701976,1749211845826,-1945.86,0.00020821,2]
[364701977,1749211845835,-440.0,0.00020821,2]
[364701979,1749211845845,-1183.7,0.00020821,2]
[364701981,1749211845855,-440.0,0.00020821,2]
[364701983,1749211845865,-631.88,0.00020821,2]
[364701985,1749211845874,-440.0,0.00020821,2]
[364701986,1749211845883,-1590.82,0.00020821,2]
[364701988,1749211845893,-1467.44,0.00020821,2]
[364701990,1749211845902,-420.0,0.00020893,2]
[364701992,1749211845911,-420.0,0.00020898,2]
[364701993,1749211845921,-2116.36843747,0.00020934,4]
[364701995,1749211845930,-454.36,0.00021095,2]
[364701997,1749211845940,-187.26439332,0.00021095,2]
[364701999,1749211845950,-442.77,0.00021095,2]
[364702001,1749211845959,-440.0,0.00021095,2]
[364702002,1749211845968,-1235.22,0.00021095,2]
[364702004,1749211845978,-578.4,0.00021095,2]
[364702006,1749211845988,-605.56,0.00021095,2]
[364702008,1749211845998,-511.2,0.00021095,2]
[364702009,1749211846008,-440.0,0.00021095,2]
[364702011,1749211846018,-1024.18,0.00021095,2]
[364702013,1749211846027,-1930.48,0.00021095,2]
[364702015,1749211846037,-1604.28,0.00021095,2]
[364702016,1749211846046,-440.0,0.00021095,2]
[364702018,1749211846055,-563.76,0.00021095,2]
[364702020,1749211846064,-469.841219,0.00021095,2]
[364702022,1749211846074,-797.67,0.00021095,2]
[364702023,1749211846084,-440.0,0.00021095,2]
[364702025,1749211846093,-440.0,0.00021095,2]
[364702027,1749211846107,-440.0,0.00021095,2]
[364702028,1749211846117,-440.0,0.00021095,2]
[364702030,1749211846126,-3054.31,0.00021095,2]
[364702032,1749211846136,-990.37,0.00021095,2]
[364702034,1749211846147,-440.0,0.00021095,2]
[364702035,1749211846156,-440.0,0.00021095,2]
[364702037,1749211846166,-257.97470515,0.00021095,2]
[364702039,1749211846176,-637.69,0.00021095,2]
[364702041,1749211846187,-971.66,0.00021095,2]
[364702042,1749211846196,-440.0,0.00021095,2]
[364702044,1749211846205,-216.18812099,0.00021095,2]
[364702046,1749211846220,-440.0,0.00021095,2]
[364702048,1749211846234,-733.35,0.00021095,2]
[364702051,1749211846247,-897.33,0.00021095,2]
[364702053,1749211846261,-440.0,0.00021095,2]
[364702054,1749211846271,-440.0,0.00021095,2]
[364702056,1749211846282,-1077.24,0.00021095,2]
[364702058,1749211846296,-440.0,0.00021095,2]
[364702060,1749211846308,-440.0,0.00021095,2]
[364702062,1749211846321,-440.0,0.00021095,2]
[364702064,1749211846333,-1945.86,0.00021095,2]
[364702066,1749211846346,-440.0,0.00021095,2]
[364702068,1749211846358,-1183.7,0.00021095,2]
[364702070,1749211846371,-440.0,0.00021095,2]
[364702072,1749211846383,-631.88,0.00021095,2]
[364702074,1749211846398,-440.0,0.00021095,2]
[364702076,1749211846410,-1590.82,0.00021095,2]
[364702078,1749211846422,-1467.44,0.00021095,2]
[364702080,1749211846434,-2116.36843747,0.00021107,4]
[364702082,1749211846447,-500.0,0.0002121,2]
[364702084,1749211846459,-2116.36843747,0.00021279,5]
[364702086,1749211846470,-567.05,0.00021333,2]
[364702088,1749211846483,-454.36,0.00021369,2]
[364702090,1749211846496,-442.77,0.00021369,2]
[364702092,1749211846508,-440.0,0.00021369,2]
[364702094,1749211846520,-1235.22,0.00021369,2]
[364702096,1749211846531,-578.4,0.00021369,2]
[364702098,1749211846542,-605.56,0.00021369,2]
[364702099,1749211846555,-511.2,0.00021369,2]
[364702101,1749211846567,-440.0,0.00021369,2]
[364702103,1749211846578,-1024.18,0.00021369,2]
[364702105,1749211846590,-1930.48,0.00021369,2]
[364702107,1749211846603,-1604.28,0.00021369,2]
[364702109,1749211846615,-440.0,0.00021369,2]
[364702111,1749211846628,-563.76,0.00021369,2]
[364702113,1749211846640,-797.67,0.00021369,2]
[364702115,1749211846653,-440.0,0.00021369,2]
[364702117,1749211846666,-517.42953021,0.00021369,2]
[364702119,1749211846677,-440.0,0.00021369,2]
[364702121,1749211846687,-440.0,0.00021369,2]
[364702123,1749211846698,-3054.31,0.00021369,2]
[364702125,1749211846709,-990.37,0.00021369,2]
[364702127,1749211846720,-440.0,0.00021369,2]
[364702129,1749211846732,-440.0,0.00021369,2]
[364702131,1749211846746,-637.69,0.00021369,2]
[364702133,1749211846758,-971.66,0.00021369,2]
[364702135,1749211846768,-440.0,0.00021369,2]
[364702137,1749211846779,-440.0,0.00021369,2]
[364702138,1749211846789,-733.35,0.00021369,2]
[364702140,1749211846800,-897.33,0.00021369,2]
[364702142,1749211846812,-440.0,0.00021369,2]
[364702144,1749211846824,-440.0,0.00021369,2]
[364702146,1749211846835,-1077.24,0.00021369,2]
[364702148,1749211846845,-440.0,0.00021369,2]
[364702150,1749211846856,-440.0,0.00021369,2]
[364702151,1749211846867,-440.0,0.00021369,2]
[364702153,1749211846878,-1945.86,0.00021369,2]
[364702155,1749211846889,-440.0,0.00021369,2]
[364702157,1749211846900,-1183.7,0.00021369,2]
[364702159,1749211846912,-440.0,0.00021369,2]
[364702161,1749211846923,-631.88,0.00021369,2]
[364702163,1749211846934,-440.0,0.00021369,2]
[364702165,1749211846944,-1590.82,0.00021369,2]
[364702167,1749211846955,-1467.44,0.00021369,2]
[364702169,1749211846966,-16924.83,0.000214,2]
[364702171,1749211846977,-2116.36843747,0.00021452,5]
[364702172,1749211846988,-2102.51,0.00021486,2]
[364702174,1749211846999,-694.31,0.00021486,2]
[364702176,1749211847011,-440.0,0.00021486,2]
[364702178,1749211847023,-440.0,0.00021486,2]
[364702180,1749211847033,-160.0,0.00021512,2]
[364702182,1749211847044,-834.50537533,0.00021512,2]
[364702184,1749211847055,-160.0,0.00021512,2]
[364702186,1749211847066,-11849.89752062,0.00021512,2]
[364702188,1749211847078,-423.83542519,0.00021512,2]
[364702189,1749211847088,-160.0,0.00021512,2]
[364702191,1749211847101,-160.0,0.00021512,2]
[364702193,1749211847114,-842.5625,0.00021512,2]
[364702195,1749211847124,-229.52673067,0.00021512,2]
[364702197,1749211847135,-160.0,0.00021512,2]
[364702199,1749211847147,-212.976918,0.00021512,2]
[364702201,1749211847158,-160.0,0.00021512,2]
[364702203,1749211847168,-160.0,0.00021514,2]
[364702205,1749211847179,-500.0,0.0002159,2]
[364702207,1749211847190,-500.40857291,0.0002159,2]
[364702209,1749211847201,-500.0,0.0002159,2]
[364702210,1749211847213,-2116.36843747,0.00021624,5]
[364702212,1749211847224,-151.0,0.00021643,2]
[364702214,1749211847236,-151.0,0.00021643,2]
[364702216,1749211847247,-151.0,0.00021643,2]
[364702218,1749211847258,-454.36,0.00021643,2]
[364702220,1749211847270,-442.77,0.00021643,2]
[364702222,1749211847281,-440.0,0.00021643,2]
[364702224,1749211847294,-1235.22,0.00021643,2]
[364702226,1749211847305,-578.4,0.00021643,2]
[364702227,1749211847317,-605.56,0.00021643,2]
[364702229,1749211847328,-511.2,0.00021643,2]
[364702231,1749211847340,-440.0,0.00021643,2]
[364702233,1749211847352,-1024.18,0.00021643,2]
[364702235,1749211847364,-1930.48,0.00021643,2]
[364702237,1749211847376,-1604.28,0.00021643,2]
[364702239,1749211847389,-440.0,0.00021643,2]
[364702241,1749211847401,-563.76,0.00021643,2]
[364702243,1749211847412,-797.67,0.00021643,2]
[364702245,1749211847424,-440.0,0.00021643,2]
[364702247,1749211847436,-541.38370329,0.00021643,2]
[364702249,1749211847447,-440.0,0.00021643,2]
[364702250,1749211847459,-3054.31,0.00021643,2]
[364702252,1749211847472,-990.37,0.00021643,2]
[364702254,1749211847484,-440.0,0.00021643,2]
[364702257,1749211847499,-440.0,0.00021643,2]
[364702258,1749211847511,-637.69,0.00021643,2]
[364702260,1749211847523,-971.66,0.00021643,2]
[364702262,1749211847535,-440.0,0.00021643,2]
[364702264,1749211847547,-440.0,0.00021643,2]
[364702266,1749211847559,-733.35,0.00021643,2]
[364702268,1749211847570,-897.33,0.00021643,2]
[364702270,1749211847582,-440.0,0.00021643,2]
[364702272,1749211847594,-440.0,0.00021643,2]
[364702274,1749211847606,-1077.24,0.00021643,2]
[364702276,1749211847617,-440.0,0.00021643,2]
[364702278,1749211847629,-440.0,0.00021643,2]
[364702280,1749211847640,-440.0,0.00021643,2]
[364702282,1749211847651,-1945.86,0.00021643,2]
[364702284,1749211847663,-440.0,0.00021643,2]
[364702286,1749211847674,-1183.7,0.00021643,2]
[364702288,1749211847685,-440.0,0.00021643,2]
[364702290,1749211847696,-631.88,0.00021643,2]
[364702292,1749211847707,-440.0,0.00021643,2]
[364702294,1749211847719,-1590.82,0.00021643,2]
[364702296,1749211847729,-1467.44,0.00021643,2]
[364702298,1749211847741,-1396.0063507,0.00021653,2]
[364702300,1749211847750,-1000.0,0.00021679,2]
[364702302,1749211847760,-500.0,0.00021708,2]
[364702304,1749211847770,-500.0,0.00021743,2]
[364702306,1749211847779,-2102.51,0.0002176,2]
[364702308,1749211847789,-694.31,0.0002176,2]
[364702310,1749211847798,-440.0,0.0002176,2]
[364702312,1749211847808,-440.0,0.0002176,2]
[364702313,1749211847817,-2116.36843747,0.00021797,6]
[364702314,1749211847826,-326.21787451,0.00021807,2]
[364702315,1749211847835,-649.81756849,0.00021807,2]
[364702316,1749211847845,-168.88924514,0.00021807,2]
[364702317,1749211847854,-500.0,0.00021807,2]
[364702318,1749211847863,-501.03380087,0.00021807,2]
[364702319,1749211848053,-160.35918792,0.00021807,2]
[364702320,1749211848071,-501.61992717,0.00021832,2]
[364702321,1749211848081,-454.36,0.00021917,2]
[364702322,1749211848091,-442.77,0.00021917,2]
[364702323,1749211848103,-201.85479833,0.00021917,2]
[364702324,1749211848112,-1235.22,0.00021917,2]
[364702325,1749211848122,-578.4,0.00021917,2]
[364702326,1749211848131,-605.56,0.00021917,2]
[364702327,1749211848141,-511.2,0.00021917,2]
[364702328,1749211848151,-440.0,0.00021917,2]
[364702329,1749211848160,-1024.18,0.00021917,2]
[364702330,1749211848170,-1930.48,0.00021917,2]
[364702331,1749211848181,-1604.28,0.00021917,2]
[364702332,1749211848191,-440.0,0.00021917,2]
[364702333,1749211848200,-563.76,0.00021917,2]